Cogmind - Beta 13 @@@ ROGUE MODE // 2024.05.24 @ 00:06:50 Player: mrwizrd Result: Destroyed by S-10 Pest with Light Assault Rifle Performance ------------- Evolutions (1) 500 Regions Visited (3) 600 Robots Destroyed (19) 95 Value Destroyed (292) 292 Prototype IDs (0) 0 Alien Tech Used (0) 0 Bonus (0) 0 TOTAL SCORE: 1487 Bonus ------- None Cogmind --------- Core Integrity 0/400 Matter 246/300 Energy 100/100 System Corruption 20% Temperature Cool (0) Movement Core (50) Location -9/Mines Parts ------- > --- POWER (1) -------- (None) > --- PROPULSION (2) --- (None) > --- UTILITY (4) ------ (None) > --- WEAPON (2) ------- (None) > --- INVENTORY (5) ---- (None) Peak State ------------ > --- POWER ------------ Light Nuclear Core > --- PROPULSION ------- Aluminum Leg Aluminum Leg > --- UTILITY ---------- Structural Scanner Seismic Detector Targeting Computer Light Armor Plating > --- WEAPON ----------- Medium Laser Assault Rifle > --- INVENTORY -------- Ion Engine Light Treads Beam Rifle Grenade Launcher Mining Laser [Rating: 11] Favorites ----------- Power Ion Engine Engine Ion Engine Power Core Light Nuclear Core Propulsion Aluminum Leg Leg Aluminum Leg Flight Unit Flight Unit Utility Structural Scanner Device Structural Scanner Storage Small Storage Unit Processor Targeting Computer Protection Light Armor Plating Weapon Assault Rifle Energy Gun Medium Laser Ballistic Gun Assault Rifle Launcher Grenade Launcher Special Weapon Mining Laser Build | -11 -10 -9 -9 ------- Run | Yrd Mat Mat Min Slots Evolved 2 | . . 2 . Power . | . . . . Propulsion . | . . . . Utility 2 | . . 2 . Weapon . | . . . . Parts Attached 29 | 6 6 7 10 Power 5 | 1 1 1 2 Engine 4 | 1 . 1 2 Core 1 | . 1 . . Reactor . | . . . . Propulsion 5 | 2 . . 3 Treads . | . . . . Leg 2 | 2 . . . Wheel . | . . . . Hover . | . . . . Flight 3 | . . . 3 Utility 7 | 1 3 2 1 Device 3 | . 2 . 1 Storage 2 | 1 1 . . Processor 1 | . . 1 . Hackware . | . . . . Protection 1 | . . 1 . Artifact . | . . . . Weapon 12 | 2 2 4 4 Energy Gun 3 | . . 1 2 Energy Cannon . | . . . . Ballistic Gun 5 | 2 1 1 1 Ballistic Cannon . | . . . . Launcher 1 | . . 1 . Special Weapon 3 | . 1 1 1 Impact Weapon . | . . . . Slashing Weapon . | . . . . Piercing Weapon . | . . . . Special Melee Weapon . | . . . . Unidentified Prototypes . | . . . . Parts Lost 19 | . 1 1 17 Power 3 | . 1 . 2 Propulsion 5 | . . . 5 Utility 5 | . . 1 4 Weapon 6 | . . . 6 Highest Loss Streak 11 | . 1 1 11 To Critical Strikes . | . . . . Average Slot Usage (%) 82 | . 97 94 44 Engine 8 | . 11 4 7 Core 2 | . 1 6 . Leg 19 | . 28 22 1 Flight 3 | . . . 14 Device 17 | . 23 22 2 Storage 1 | . 4 . . Processor 3 | . . 11 . Protection 1 | . . 6 . Energy Gun 4 | . . 6 7 Ballistic Gun 15 | . 27 11 1 Special Weapon 2 | . . 2 7 Naked Turns 30 | . . . 30 Heaviest Build 15 | 14 15 14 11 Greatest Support 20 | 20 20 20 20 Greatest Overweight (x) 2 | 1 . . 2 Average Overweight (x) . | . . . . Largest Inventory Capacity 8 | 8 8 5 5 Average Capacity 5 | 6 5 5 5 Most Carried 5 | 4 5 5 5 Average Carried 3 | 2 4 4 1 Final Capacity 8 | 8 5 5 5 Final Carried 5 | 4 5 5 . Class Distribution -------------------- 100% | Mutant Dominant Class ---------------- Mutant | -10/Materials Mutant | -9/Materials Mutant | -9/Mines Resources | -11 -10 -9 -9 ----------- Run | Yrd Mat Mat Min Matter Collected 672 | 236 185 102 149 Remotely . | . . . . Salvage Created 399 | . 133 207 59 Parts 41 | . 13 20 8 Haulers Intercepted . | . . . . Recyclers Shooed . | . . . . Parts Field Recycled . | . . . . Retrieved Matter . | . . . . Parts Self-Destructed . | . . . . Prevented . | . . . . Kills | -11 -10 -9 -9 ------- Run | Yrd Mat Mat Min Combat Hostiles Destroyed 22 | . 5 9 8 Guns 13 | . 5 5 3 AOE 9 | . . 4 5 Classes Destroyed 5 | . 2 2 1 Recycler 1 | . . 1 . Swarmer 15 | . 3 8 4 Grunt 2 | . 2 . . Sentry 1 | . . 1 . Assembled 4 | . . . 4 Best Kill Streak 6 | . 3 5 6 Combat Bots Only 6 | . 3 4 6 Max Kills in Single Turn 3 | . 2 3 3 Gunslinging 1 | . 1 . . Exploded 3 | . . 2 3 Melee . | . . . . Uniques/NPCs Destroyed . | . . . . Combat | -11 -10 -9 -9 -------- Run | Yrd Mat Mat Min Hostile Shots Fired 132 | . 40 40 52 Missed 35 | . 11 10 14 Damage Taken 1533 | . 318 298 917 Core 451 | . 46 41 364 Absorbed by Shields . | . . . . Core Remaining (%) 90 | 100 81 . . Volleys Fired 67 | . 21 23 23 Largest 2 | . 2 2 2 Hottest 100 | . 40 100 56 Shots Fired 109 | . 42 39 28 Gun 97 | . 42 33 22 Cannon . | . . . . Launcher 10 | . . 4 6 Special 2 | . . 2 . Kinetic 67 | . 42 16 9 Thermal 32 | . . 19 13 Explosive 10 | . . 4 6 Electromagnetic . | . . . . Robot Hit Streak 5 | . 4 5 5 Robot Miss Streak 8 | . 7 8 2 Penetration Max . | . . . . Secondary Targets 2 | . 2 . . Max Gunslinging Chain 1 | . 1 . . Shots Hit Robots 54 | . 21 18 15 Core Hits 33 | . 8 11 14 Critical Kills . | . . . . Critical Parts Destroyed . | . . . . Critical Strikes 2 | . . 1 1 Burn 2 | . . 1 1 Melee Attacks . | . . . . Impact . | . . . . Slashing . | . . . . Piercing . | . . . . Sneak Attacks . | . . . . Combat Hostiles . | . . . . Follow-up Attacks . | . . . . Damage Inflicted 1331 | . 292 510 529 Guns 626 | . 292 166 168 Cannons . | . . . . Explosions 705 | . . 344 361 Melee . | . . . . Ramming . | . . . . Kinetic 441 | . 292 80 69 Thermal 185 | . . 86 99 Explosive 705 | . . 344 361 Electromagnetic . | . . . . Impact . | . . . . Slashing . | . . . . Piercing . | . . . . Highest Corruption 20 | . . . 20 Average Corruption 19 | . . . 19 Corruption Purged . | . . . . Corruption Blocked . | . . . . Effects 9 | . . . 9 Message Errors 2 | . . . 2 Matter Fused 4 | . . . 4 Heat Flow Errors 1 | . . . 1 Energy Discharges 1 | . . . 1 Weapon Failures 1 | . . . 1 Overload Shots . | . . . . Overflow Damage 18 | . . 1 17 Projectiles . | . . . . Explosions 18 | . . 1 17 Melee . | . . . . Knockbacks . | . . . . Impact . | . . . . Kinetic . | . . . . Secondary . | . . . . Self-Inflicted Damage 136 | . . 25 111 Shots 5 | . . 1 4 Rammed . | . . . . Targets Rammed . | . . . . Kicked . | . . . . Crushed . | . . . . Highest Temperature 168 | . 20 165 168 Average Temperature 51 | . 9 56 60 Received Heat Transfer 198 | . 183 15 . Siege Activations . | . . . . Robots Corrupted . | . . . . Combat Hostiles . | . . . . Parts Fried . | . . . . Impact Corruptions . | . . . . Robots Melted . | . . . . Combat Hostiles . | . . . . Parts Melted 1 | . . 1 . Heat Transferred 703 | . . 333 370 Parts Sabotaged . | . . . . Parts Stolen . | . . . . Parts Stripped . | . . . . Power Chain Reactions . | . . . . Alert | -11 -10 -9 -9 ------- Run | Yrd Mat Mat Min Peak Influence 253 | . 156 253 233 Initial 98 | . . . 98 Average 78 | . 50 96 129 Maximum Alert Level 1 | . . 1 1 Low Security (%) 94 | 100 100 86 91 Level 1 5 | . . 13 8 Level 2 . | . . . . Level 3 . | . . . . Level 4 . | . . . . Level 5 . | . . . . High Security . | . . . . Max Security . | . . . . Squads Dispatched 1 | . . 1 . Investigation . | . . . . Extermination . | . . . . Reinforcement 1 | . . 1 . Assault . | . . . . Garrison . | . . . . Intercept . | . . . . Searches Triggered . | . . . . Construction Impeded . | . . . . Haulers Reinforced . | . . . . Active Scanning Responses . | . . . . Cargo Convoy Interrupts . | . . . . Stealth | -11 -10 -9 -9 --------- Run | Yrd Mat Mat Min Distress Signals . | . . . . Communications Jammed . | . . . . Distress Signals . | . . . . Times Spotted 32 | . 7 14 11 Peak Tracking Total 7 | . 3 7 5 Tactical Retreats . | . . . . Traps | -11 -10 -9 -9 ------- Run | Yrd Mat Mat Min Traps Triggered . | . . . . Indirectly . | . . . . Trap Hack Attempts . | . . . . Triggered . | . . . . Disarmed . | . . . . Reprogrammed . | . . . . Reused . | . . . . Traps Extracted . | . . . . Installed . | . . . . Triggered . | . . . . Machines | -11 -10 -9 -9 ---------- Run | Yrd Mat Mat Min Machines Disabled 1 | . 1 . . Max in Single Turn 1 | . 1 . . Machines Repaired . | . . . . Machines Dismantled . | . . . . Machines Sabotaged . | . . . . Overloaded Fab Kills . | . . . . Hacking | -11 -10 -9 -9 --------- Run | Yrd Mat Mat Min Machines Accessed 1 | . 1 . . Terminals 1 | . 1 . . Fabricators . | . . . . Repair Stations . | . . . . Recycling Units . | . . . . Scanalyzers . | . . . . Garrison Access . | . . . . Total Hacks 1 | . 1 . . Successful 1 | . 1 . . Failed . | . . . . Catastrophic . | . . . . Database Lockouts . | . . . . Manual . | . . . . Terminals 1 | . 1 . . Fabricators . | . . . . Repair Stations . | . . . . Recycling Units . | . . . . Scanalyzers . | . . . . Garrison Access . | . . . . Terminal Hacks 1 | . 1 . . Zone Layout 1 | . 1 . . Fabricator Hacks . | . . . . Repair Station Hacks . | . . . . Recycling Unit Hacks . | . . . . Scanalyzer . | . . . . Garrison Access Hacks . | . . . . Unauthorized Hacks . | . . . . Terminals . | . . . . Fabricators . | . . . . Repair Stations . | . . . . Recycling Units . | . . . . Scanalyzers . | . . . . Garrison Access . | . . . . Data Cores Recovered . | . . . . Used . | . . . . Hacking Detections 1 | . 1 . . Full Trace Events . | . . . . Feedback Events . | . . . . Feedback Blocked . | . . . . Robot Schematics Acquired . | . . . . Robots Built . | . . . . Authchips . | . . . . Time . | . . . . Total Robot Build Rating . | . . . . Part Schematics Acquired . | . . . . Parts Built . | . . . . Authchips . | . . . . Time . | . . . . Total Part Build Rating . | . . . . Parts Repaired . | . . . . Time . | . . . . Parts Recycled . | . . . . Recycled Matter . | . . . . Retrieved Matter . | . . . . Retrieved Components . | . . . . Parts Scanalyzed . | . . . . Part Schematics Acquired . | . . . . Parts Damaged . | . . . . Bothacking | -11 -10 -9 -9 ------------ Run | Yrd Mat Mat Min Used RIF Installer . | . . . . Robots Hacked . | . . . . Non-combat . | . . . . Combat . | . . . . Robot Hacks Applied . | . . . . Relay Couplers Released . | . . . . Fabnet Peak Effective % . | . . . . Robots Rewired . | . . . . Allies Hacked . | . . . . Hacks Repelled . | . . . . Allies | -11 -10 -9 -9 -------- Run | Yrd Mat Mat Min Total Allies . | . . . . Largest Group . | . . . . Highest-Rated Group . | . . . . Highest-Rated Ally . | . . . . Total Orders . | . . . . Ally Attacks . | . . . . Total Damage . | . . . . Kills . | . . . . Allies Corrupted . | . . . . Allies Melted . | . . . . Intel | -11 -10 -9 -9 ------- Run | Yrd Mat Mat Min Robot Analysis Total . | . . . . Derelict Logs Recovered . | . . . . Drone Launches . | . . . . Drone Recoveries . | . . . . Exploration | -11 -10 -9 -9 ------------- Run | Yrd Mat Mat Min Turns Passed 1016 | 76 415 273 252 Spaces Moved 954 | 57 281 162 454 Core 71 | 7 . . 64 Treads . | . . . . Legs 499 | 50 281 162 6 Wheels . | . . . . Hover . | . . . . Flight 384 | . . . 384 Fastest Speed 37 | 50 120 120 37 Average Speed 82 | 112 120 120 41 Slowest Speed 150 | 120 120 120 150 Overloaded Moves . | . . . . Propulsion Burnouts . | . . . . Robots Hopped . | . . . . Cave-ins Triggered . | . . . . Exploration Rate (%) 35 | 5 43 19 75 Regions Visited 3 Branch Regions 1 Pre-discovered Areas . | . . . . Known Exits Taken . | . . . . Unknown Exits Taken 3 | 1 1 1 . Scrap Searched 1 | . . . 1 Spaces Dug 2 | . . 2 . Terrain Destroyed 56 | . . 16 40 Melee . | . . . . Projectile 2 | . . 2 . AOE 54 | . . 14 40 Terrain Rammed . | . . . . Walls Destroyed . | . . . . Machines Disabled . | . . . . Actions | -11 -10 -9 -9 --------- Run | Yrd Mat Mat Min Total 1067 | 66 317 196 488 Wait 3 | . 3 . . Move 951 | 56 280 161 454 Hop . | . . . . Pick Up 9 | 4 2 2 1 Fast Attach 16 | 6 5 2 3 Attach 7 | . . 1 6 Detach . | . . . . Swap 6 | . 1 4 1 Drop 8 | . 5 3 . Fire 67 | . 21 23 23 Melee . | . . . . Ram . | . . . . Kick . | . . . . Crush . | . . . . Escape Stasis . | . . . . Rewire . | . . . . Trap . | . . . . Miscellaneous . | . . . . Route ------- -11/Scrapyard -10/Materials -9/Materials -9/Mines History --------- Turn | Location | Event 14 | -11/Scrapyard | Discovered new exit (range 16) 77 | -11/Scrapyard | Entered Materials 313 | -10/Materials | Build established: Mutant 473 | -10/Materials | Discovered new exit (range 10) 492 | -10/Materials | Entered another Materials area 492 | -9/Materials | Evolved 2 slots: Utility x2 741 | -9/Materials | Discovered new exit (range 15) 765 | -9/Materials | Entered Mines 766 | -9/Mines | Assembled infested the area 790 | -9/Mines | System corruption reached 10% 858 | -9/Mines | Lost 11 parts (1p3n4u3w) 980 | -9/Mines | Core integrity fell below 50% 990 | -9/Mines | Core integrity fell below 20% 1017 | -9/Mines | Destroyed by S-10 Pest with Light Assault Rifle Last Messages --------------- System corrupted: Matter fused (-10). K-01 Serf collects debris. System corrupted: Heat flow error (+185). Searching scrap... Found 21 Matter. Found 14 Matter. Acquired 21 matter. Acquired 14 matter. K-01 Serf collects debris. System corrupted: Matter fused (-9). Med. Laser destroyed. Mining Laser destroyed. The unstable cave ceiling collapses. Lgt. Ion Engine destroyed. Lgt. Assault Rifle destroyed. Flight Unit destroyed. The unstable cave ceiling collapses. Flight Unit destroyed. Seismic Survey Station disabled. IHQI1DWLN//0EGJBSVTK Map ----- +----------------------------------------------------+ | ### ###########??## # ##????????# | | ## ###### ####??### #### #??????#### | | ### ### ####???# #### #??????# # | | # ####??# #?????## # | | ^ ####?# ######???### | | ###?# ?######## " | | # ##?### | | # # ##???# #??##### | | #### ## ##???# #??????## ## | | ######## ### ###???# #???????## ##?# | | ##???### ### ####???# #????????# ##??? | | ######### ###???## ##???????## ##???? | | ###???## ##???????### ##????? | | ####???# #?????????# #?????? | | ########## ####????# #???####??# ###???? | | ?????######## ##???????# ##### #### #???? | | ????????########????????# ## ##### #???? | | ????????????####?????????# ##?# #???? | | ?????????????????????????## ### ##??? | | ????????????????????????#### #??? | | ????????????????????????# #??? | | ????????????????????????# #??? | | ????????????????????????# ### ###### #?? | | ????????????????????????# #?### ##????## | | ????????????????????????# ###?####??????## | | ????????????????????????#@s #????????????## | | ???????????????????????# s ???????? | | ??????????????????????# ss ??? | | ????????????????????? ############??## | | ???????????????????? ##??????????????? # | | ???????????????????### ##???????????????? ## | | ?????????????????????## #??????????????????# ##? | | ??????????????????????###????????????????????###?? | | ?????????????????????????????????????????????????? | | ?????????????????????????????????????????????????? | | | | | | | | | | | | | | | | | | | | | | | | | | | | | | | +----------------------------------------------------+ Best States ------------- Heat Dissipation 28 Energy Generation 14 Energy Capacity 250 Matter Stores 300 Matter Capacity 300 Sight Range 16 Terrain Scan Density 10 Armor Coverage 150 Evasion (%) 62 Targeting Accuracy 5 Item Schematics ----------------- None Robot Schematics ------------------ None Fabricated ------------ Nothing Alien Tech Used ----------------- None Achievements -------------- None Challenges ------------ None Game ------ Seed SupercompositeLatentFirepult Manual? 0 Play Time 00:18:56 Cumulative 35.0 hours Start 2024.05.23 @ 23:51:31 End 2024.05.24 @ 00:06:50 Sessions 1 Manual Loads 0 Difficulty Rogue Special Mode None Game No. 36 Rogue 36 Adventurer 0 Explorer 0 Win Type - Total 0 Types 0/0/0/0/0/0/0/0/0 Lore% 17 Gallery% 22 Achievement% 19 Wizard Run 0 Options --------- Layout 0 ASCII 0 Keyboard 1 Movement Arrows Keybinds 0 Fullscreen 2 Font 20/SmallcapsGlow Map View 66x50 Zoom Use 0% Tactical HUD 0 Map Filters NONE Filters NONE Steam 1 RUN: a87f6dff-6e01-4df2-a389-d69103640a38